bitfinex/quotes_SOLUSD_20260309
["timestamp","ask_amount","ask_price","bid_price","bid_amount"]
[1773040718012,12.11108285,82.569,82.54,12.0406954]
[1773040718188,12.11004409,82.577,82.541,3.37947499]
[1773040718378,2.29950284,82.576,82.53,3.37947499]
[1773040718579,2.29950284,82.576,82.54,12.0406954]
[1773040718797,2.29950284,82.576,82.54,15.42017039]
[1773040719787,42.31436941,82.58,82.541,3.37947499]
[1773040719788,42.38570995,82.575,82.541,3.37947499]
[1773040720594,2.32531957,82.574,82.53,12.0406954]
[1773040721010,42.38570995,82.575,82.541,3.37947499]
[1773040721189,12.11020284,82.575,82.541,3.37947499]
[1773040721389,12.11020284,82.575,82.55,15.42017039]
[1773040721790,12.10873645,82.585,82.551,3.37947499]
[1773040721988,12.10873645,82.585,82.553,3.37947499]
[1773040722208,12.10873645,82.585,82.542,3.37947499]
[1773040722209,2.33366167,82.579,82.542,3.37947499]
[1773040722412,42.38057758,82.585,82.541,3.37947499]
[1773040722610,12.0406954,82.58,82.541,3.37947499]
[1773040722795,12.0406954,82.58,82.49,0.1]
[1773040722796,12.0406954,82.56,82.521,12.1181275]
[1773040722997,12.0406954,82.56,82.521,15.49760249]
[1773040723199,2.31979208,82.569,82.522,3.37947499]
[1773040723415,12.0406954,82.56,82.522,3.37947499]
[1773040723596,12.0406954,82.57,82.522,3.37947499]
[1773040723911,42.38878997,82.569,82.524,3.37947499]
[1773040724093,12.0406954,82.56,82.524,3.37947499]
[1773040724290,2.3060818,82.568,82.524,3.37947499]
[1773040724494,12.11108285,82.569,82.531,3.37947499]
[1773040725100,12.11029162,82.575,82.541,3.37947499]
[1773040725507,12.0406954,82.57,82.531,3.37947499]
[1773040725810,12.0406954,82.57,82.53,12.0406954]
[1773040725811,14.39425915,82.568,82.532,12.11651238]
[1773040726002,2.28302962,82.559,82.521,3.37947499]
[1773040726206,2.28302962,82.559,82.512,3.37947499]
[1773040726808,42.38930336,82.568,82.531,3.37947499]
[1773040727114,2.27170173,82.559,82.52,3.37947499]
[1773040727808,12.11269652,82.558,82.521,12.1181275]
[1773040728008,12.11269652,82.558,82.521,15.49760249]
[1773040728403,42.39443784,82.558,82.521,15.49760249]
[1773040728604,42.39443784,82.558,82.521,3.37947499]
[1773040729296,44.64387263,82.558,82.521,3.37947499]
[1773040729501,44.64387263,82.558,82.521,15.49760249]
[1773040729707,2.23849277,82.586,82.541,3.37947499]
[1773040729914,12.10873645,82.585,82.543,3.37947499]
[1773040730302,42.38057758,82.585,82.543,3.37947499]
[1773040730816,44.60825401,82.585,82.543,3.37947499]
[1773040731314,12.10814999,82.589,82.551,3.37947499]
[1773040731701,2.21698433,82.588,82.551,3.37947499]
[1773040731896,14.25767973,82.58,82.542,3.37947499]
[1773040732310,2.21698433,82.549,82.491,3.37947499]
[1773040732511,12.0406954,82.56,82.491,3.37947499]
[1773040732512,12.0406954,82.52,82.491,3.37947499]
[1773040732714,2.20641503,82.529,82.491,3.37947499]
[1773040732908,12.0406954,82.52,82.491,3.37947499]
[1773040733402,12.11842121,82.519,82.491,3.37947499]
[1773040733608,12.11842121,82.519,82.492,3.37947499]
[1773040734316,12.11586456,82.537,82.501,3.37947499]
[1773040734711,12.0406954,82.53,82.501,3.37947499]
[1773040734914,2.18563924,82.529,82.49,0.1]
[1773040735101,2.18563924,82.529,82.492,3.37947499]
[1773040735297,2.18563924,82.529,82.303,26.66757204]
[1773040735298,2.18563924,82.499,82.444,3.37947499]
[1773040735499,12.0406954,82.5,82.444,3.37947499]
[1773040735500,12.0406954,82.47,82.444,3.37947499]
[1773040735718,2.17542998,82.49,82.436,3.37947499]
[1773040735917,12.0406954,82.47,82.436,3.37947499]
[1773040736219,12.0406954,82.46,82.436,3.37947499]
[1773040736428,12.0406954,82.46,82.422,3.37947499]
[1773040736616,12.0406954,82.45,82.422,3.37947499]
[1773040736922,2.16533798,82.46,82.422,3.37947499]
[1773040737130,12.0406954,82.45,82.421,12.13283022]
[1773040737435,12.0406954,82.45,82.42,0.1]
[1773040737730,12.12870986,82.449,82.42,0.1]
[1773040738114,12.0406954,82.45,82.421,3.37947499]
[1773040738317,12.0406954,82.45,82.406,0.2583652]
[1773040738318,12.0406954,82.43,82.406,0.2583652]
[1773040738531,12.0406954,82.42,82.406,0.2583652]
[1773040738837,12.0406954,82.42,82.386,12.1379846]
[1773040739047,12.0406954,82.41,82.385,3.37947499]
[1773040739341,12.13149371,82.431,82.387,3.37947499]
[1773040739513,12.0406954,82.42,82.387,3.37947499]
[1773040739718,12.13149371,82.431,82.377,3.37947499]
[1773040739719,12.12378817,82.41,82.377,3.37947499]
[1773040740225,2.03575216,82.419,82.377,3.37947499]
[1773040740430,12.12378817,82.4,82.377,3.37947499]
[1773040740633,12.12378817,82.42,82.379,3.37947499]
[1773040740818,12.12378817,82.41,82.379,3.37947499]
[1773040741325,12.12378817,82.4,82.379,3.37947499]
[1773040741629,12.12378817,82.41,82.38,12.13886865]
[1773040741930,12.12378817,82.41,82.374,3.37947499]
[1773040742433,12.12378817,82.4,82.374,3.37947499]
[1773040742631,12.12378817,82.41,82.374,3.37947499]
[1773040743212,12.12378817,82.4,82.374,3.37947499]
[1773040743418,12.13606961,82.399,82.374,3.37947499]
[1773040743620,12.13606961,82.399,82.272,51.33870662]
[1773040743621,12.12378817,82.38,82.331,12.1460932]
[1773040743827,12.12378817,82.36,82.325,12.1468897]
[1773040744030,12.12378817,82.36,82.332,3.3833112]
[1773040744343,12.12378817,82.37,82.332,3.3833112]
[1773040744547,12.12378817,82.39,82.351,3.3833112]
[1773040745051,12.12378817,82.38,82.351,3.3833112]
[1773040745428,12.13901601,82.379,82.351,3.3833112]
[1773040745644,24.26271686,82.38,82.352,12.14299591]
[1773040745830,24.26271686,82.38,82.351,3.3833112]
[1773040745831,1.97170439,82.424,82.361,3.3833112]
[1773040746037,12.12378817,82.41,82.371,3.3833112]
[1773040746560,12.12378817,82.41,82.301,4.82477569]
[1773040746561,12.12378817,82.38,82.346,3.3833112]
[1773040746725,12.12378817,82.38,82.347,3.3833112]
[1773040747129,12.12378817,82.39,82.347,3.3833112]
[1773040747328,12.12378817,82.4,82.361,3.3833112]
[1773040747527,12.12378817,82.4,82.363,3.3833112]
[1773040748144,12.12378817,82.41,82.371,3.3833112]
[1773040748747,12.13459694,82.409,82.371,3.3833112]
[1773040748931,12.12378817,82.4,82.371,3.3833112]
[1773040749743,12.12378817,82.41,82.373,3.36081396]
[1773040750149,12.12378817,82.42,82.381,3.36081396]
[1773040750948,12.12378817,82.43,82.391,3.36081396]
[1773040751344,12.12378817,82.42,82.391,3.36081396]
[1773040751652,12.12378817,82.43,82.391,3.36081396]
[1773040751853,12.12378817,82.43,82.393,3.36081396]
[1773040752155,12.12378817,82.42,82.393,3.36081396]
[1773040752328,12.12378817,82.43,82.393,3.36081396]
[1773040752528,1.91407367,82.443,82.401,3.36081396]
[1773040752529,12.12378817,82.44,82.401,3.36081396]
[1773040752848,12.12378817,82.43,82.401,3.36081396]
[1773040753447,12.12378817,82.44,82.401,3.36081396]
[1773040754146,12.12378817,82.44,82.403,3.36081396]
[1773040754147,12.12378817,82.43,82.403,3.36081396]
[1773040754355,12.12378817,82.44,82.403,3.36081396]
[1773040755134,12.12378817,82.43,82.403,3.36081396]
[1773040755348,12.12378817,82.44,82.403,3.36081396]
[1773040756238,12.12378817,82.43,82.405,3.36081396]
[1773040756633,12.12378817,82.44,82.405,3.36081396]
[1773040758233,12.12378817,82.44,82.413,3.36081396]
[1773040758436,12.12378817,82.43,82.413,3.36081396]
[1773040758737,12.12378817,82.43,82.401,3.36081396]
[1773040759041,12.12378817,82.43,82.403,3.36081396]
[1773040760044,1.86091993,82.439,82.403,3.36081396]
[1773040760361,12.12378817,82.44,82.4,12.12378817]
[1773040760362,12.12378817,82.44,82.405,3.36081396]
[1773040760550,24.25387825,82.44,82.405,3.36081396]
[1773040761253,12.12928313,82.446,82.405,3.36081396]
[1773040761442,12.12378817,82.45,82.411,3.36081396]
[1773040761640,4.82477569,82.49,82.404,42.47366632]
[1773040761641,12.12635449,82.466,82.421,3.36081396]
[1773040761841,12.12576847,82.469,82.431,3.36081396]
[1773040762358,12.18668756,82.52,82.211,33.4569109]
[1773040762359,12.12378817,82.49,82.453,3.36081396]
[1773040762854,12.12378817,82.48,82.453,3.36081396]
[1773040763034,12.12378817,82.46,82.417,3.69383402]
[1773040763234,12.1216529,82.497,82.401,3.36081396]
[1773040763235,12.12378817,82.43,82.401,3.36081396]
[1773040763955,12.12378817,82.42,82.38,42.47065099]
[1773040764161,12.12378817,82.42,82.381,3.36081396]
[1773040764459,12.13312464,82.419,82.383,3.36081396]
[1773040765448,12.13312464,82.419,82.384,12.13827927]
[1773040765756,12.13312464,82.419,82.385,3.36081396]
[1773040766543,1.82550023,82.427,82.385,3.36081396]
[1773040766755,12.12378817,82.42,82.385,3.36081396]
[1773040767758,30.32872438,82.431,82.391,3.36081396]
[1773040767759,12.12378817,82.43,82.391,3.36081396]
[1773040768952,12.1301811,82.439,82.401,3.36081396]
[1773040770051,12.12378817,82.44,82.403,3.36081396]
[1773040770242,24.25384941,82.44,82.403,3.36081396]
[1773040770444,30.32024161,82.454,82.411,3.36081396]
[1773040770445,12.12378817,82.45,82.411,3.36081396]
[1773040770657,60.6165062,82.486,82.402,42.47469721]
[1773040770658,3.42480976,82.509,82.441,3.36081396]
[1773040770859,3.42480976,82.509,82.432,3.69383402]
[1773040770860,3.42480976,82.499,82.46,12.12378817]
[1773040771042,3.42480976,82.499,82.451,3.36081396]
[1773040771373,15.54455282,82.51,82.471,3.36081396]
[1773040771744,27.66834099,82.51,82.471,3.36081396]
[1773040772059,27.66834099,82.51,82.473,3.36081396]
[1773040772864,27.66834099,82.51,82.48,12.12378817]
[1773040773560,27.66834099,82.51,82.473,3.36081396]
[1773040774753,27.66834099,82.51,82.474,15.55122034]
[1773040775158,27.66834099,82.51,82.474,12.12503334]
[1773040775467,27.66834099,82.51,82.475,3.426187]
[1773040775870,15.54455282,82.51,82.476,3.426187]
[1773040776172,27.66834099,82.51,82.476,3.426187]
[1773040777982,12.12378817,82.5,82.467,12.12600353]
[1773040778293,3.36537561,82.507,82.47,15.54997517]
[1773040778575,3.36537561,82.507,82.471,3.426187]
[1773040779252,15.48916378,82.5,82.464,3.426187]
[1773040779672,15.48916378,82.5,82.47,12.12378817]
[1773040780078,12.12135904,82.499,82.471,12.1254744]
[1773040780665,12.11988995,82.509,82.472,3.426187]
[1773040780871,3.36537561,82.508,82.472,3.426187]
[1773040781370,12.12378817,82.5,82.472,3.426187]
[1773040781554,3.36537561,82.508,82.472,3.426187]
[1773040781966,12.12378817,82.5,82.472,3.426187]
[1773040782665,12.12135904,82.499,82.472,3.426187]
[1773040783866,12.12135904,82.499,82.473,15.55136736]
[1773040784070,12.12135904,82.499,82.474,3.426187]
[1773040784576,3.36537561,82.499,82.462,12.12679779]
[1773040784775,12.12150597,82.498,82.463,3.426187]
[1773040785077,12.12089738,82.503,82.471,3.426187]
[1773040785256,15.48548891,82.508,82.471,3.426187]
[1773040786376,12.1201133,82.508,82.471,3.426187]
[1773040787365,12.1201133,82.508,82.47,12.12378817]
[1773040787366,12.1201133,82.508,82.473,3.426187]
[1773040787763,3.36537561,82.507,82.473,3.426187]
[1773040788480,12.1201133,82.508,82.473,3.426187]
[1773040788676,15.48142607,82.536,82.491,3.426187]
[1773040788882,12.11695282,82.529,82.501,3.426187]
[1773040789265,12.32378817,82.53,82.502,12.12091828]
[1773040789862,12.11695282,82.529,82.503,3.426187]
[1773040790571,3.20613989,82.528,82.493,3.426187]
[1773040791568,12.11724647,82.527,82.494,12.12209372]
[1773040791766,12.11724647,82.527,82.495,3.426187]
[1773040793778,12.12378817,82.52,82.495,3.426187]
[1773040794167,12.11724647,82.527,82.496,3.426187]
[1773040795077,12.32378817,82.53,82.496,3.426187]
[1773040795280,12.32378817,82.53,82.501,3.426187]
[1773040795587,0.2,82.53,82.501,3.426187]
[1773040795782,0.2,82.53,82.503,3.426187]
[1773040796980,30.28491994,82.55,82.511,3.426187]
[1773040796981,12.12378817,82.55,82.511,3.426187]
[1773040797186,24.23619127,82.56,82.521,3.426187]
[1773040797386,24.23619127,82.56,82.531,3.426187]
[1773040797893,12.11269652,82.558,82.531,3.426187]
[1773040798390,3.36537561,82.557,82.523,12.11782088]
[1773040798693,12.12378817,82.56,82.524,3.426187]
[1773040799581,12.08168934,82.56,82.524,3.426187]
[1773040800189,12.11254981,82.559,82.526,3.426187]
[1773040800590,3.36537561,82.549,82.516,3.426187]
[1773040800892,3.36537561,82.549,82.517,12.11871493]
[1773040801094,3.36537561,82.558,82.521,3.426187]
[1773040801396,12.11039442,82.574,82.541,3.426187]
[1773040801574,12.10978648,82.578,82.541,3.426187]
[1773040801778,12.10978648,82.578,82.551,3.426187]
[1773040802187,12.08168934,82.58,82.552,3.426187]
[1773040802378,12.10873645,82.585,82.531,3.426187]
[1773040802379,3.36537561,82.569,82.531,3.426187]
[1773040803889,42.38057758,82.585,82.526,30.29317211]
[1773040803890,12.08168934,82.58,82.541,3.2759064]
[1773040804594,15.45513452,82.579,82.543,3.2759064]
[1773040805009,12.30662291,82.6,82.561,3.2759064]
[1773040805184,3.34551828,82.598,82.561,3.2759064]
[1773040805386,12.08168934,82.58,82.551,3.2759064]
[1773040805696,3.34551828,82.579,82.551,3.2759064]
[1773040806279,15.42720762,82.57,82.531,3.2759064]
[1773040806484,12.08168934,82.58,82.541,3.2759064]
[1773040807000,12.08168934,82.58,82.54,12.08168934]
[1773040807001,24.19128067,82.58,82.542,12.11504446]
[1773040807183,24.19128067,82.58,82.543,3.2759064]
[1773040807885,12.08168934,82.58,82.543,3.2759064]
[1773040808200,12.08168934,82.58,82.551,3.2759064]
[1773040809201,15.45441167,82.584,82.553,3.43971936]
[1773040809704,15.42069943,82.58,82.553,3.43971936]
[1773040809883,24.18981292,82.59,82.553,3.43971936]
[1773040810090,3.33901009,82.589,82.553,3.43971936]
[1773040811314,12.10812358,82.59,82.561,3.43971936]
[1773040811508,24.18981292,82.59,82.561,3.43971936]
[1773040811809,3.33901009,82.589,82.561,3.43971936]
[1773040812394,0.2,82.6,82.572,3.43971936]
[1773040812599,3.33901009,82.619,82.581,3.43971936]
[1773040813314,12.10389987,82.618,82.582,12.10917633]
[1773040813508,12.10389987,82.618,82.583,3.43971936]
[1773040814422,15.44290996,82.618,82.583,3.43971936]
[1773040815613,15.44290996,82.618,82.585,3.43971936]
[1773040815808,3.33901009,82.617,82.585,3.43971936]
[1773040816505,6.46230974,82.64,82.591,3.43971936]
[1773040816506,12.10326617,82.623,82.591,3.43971936]
[1773040817004,3.33901009,82.619,82.591,3.43971936]
[1773040817813,3.33901009,82.619,82.592,15.54742954]
[1773040818011,0.2,82.64,82.611,3.43971936]
[1773040818197,12.0974743,82.662,82.631,3.43971936]
[1773040818407,12.0974743,82.662,82.64,12.08168934]
[1773040818603,6.25890402,82.69,82.641,3.43971936]
[1773040818800,6.25890402,82.69,82.592,42.37698565]
[1773040818801,3.33901009,82.691,82.627,3.43971936]
[1773040819100,3.33901009,82.691,82.66,12.08168934]
[1773040819304,3.33901009,82.698,82.661,3.43971936]
[1773040819902,6.25613993,82.72,82.69,12.08168934]
[1773040819903,3.23224176,82.72,82.69,12.08168934]
[1773040820113,12.089121,82.719,82.69,12.08168934]
[1773040820427,3.23224176,82.72,82.69,12.08168934]
[1773040820428,15.42069943,82.73,82.691,3.43971936]
[1773040820721,3.33901009,82.73,82.691,3.43971936]
[1773040820905,3.33901009,82.73,82.7,12.08168934]
[1773040821114,3.69383402,82.758,82.662,102.82838546]
[1773040821115,3.33901009,82.738,82.71,12.08168934]
[1773040821902,3.69383402,82.767,82.68,12.08168934]
[1773040821903,3.33901009,82.757,82.72,12.08168934]
[1773040823026,3.33901009,82.749,82.71,12.08168934]
[1773040823220,3.33901009,82.739,82.704,3.43971936]
[1773040823516,3.33901009,82.739,82.66,60.48841608]
[1773040823517,3.33901009,82.709,82.668,3.43971936]
[1773040823724,12.08168934,82.69,82.668,3.43971936]
[1773040824020,12.08168934,82.69,82.622,3.69383402]
[1773040824021,12.08168934,82.71,82.683,3.43971936]
[1773040824225,3.23224176,82.699,82.661,15.53732282]
[1773040824525,12.08168934,82.69,82.662,3.43971936]
[1773040825615,16.90646503,82.74,82.662,3.43971936]
[1773040825616,12.08168934,82.7,82.662,3.43971936]
[1773040825803,12.08168934,82.71,82.68,15.5214087]
[1773040826003,3.69383402,82.738,82.621,6.03512172]
[1773040826004,12.08168934,82.73,82.691,3.43971936]
[1773040826426,12.08168934,82.73,82.701,3.43971936]
[1773040826716,12.08168934,82.72,82.691,3.43971936]
[1773040828123,12.08168934,82.72,82.693,3.43971936]
[1773040828627,12.08168934,82.73,82.693,3.43971936]
[1773040828919,24.16934746,82.73,82.693,3.43971936]
[1773040829216,12.0876597,82.729,82.693,3.43971936]
[1773040830026,12.0876597,82.729,82.695,3.43971936]
[1773040830226,12.08168934,82.72,82.695,3.43971936]
[1773040830415,12.08168934,82.72,82.681,3.43971936]
[1773040830416,3.33901009,82.719,82.681,3.43971936]
[1773040830608,3.33901009,82.719,82.682,3.43971936]
[1773040830918,12.08168934,82.72,82.682,3.43971936]
[1773040831128,15.42069943,82.72,82.682,3.43971936]
[1773040831508,12.08168934,82.71,82.682,3.43971936]
[1773040831708,3.33901009,82.709,82.672,3.43971936]
[1773040832123,12.08168934,82.7,82.673,12.09584749]
[1773040832631,12.08168934,82.7,82.662,3.43971936]
[1773040833139,12.09072882,82.708,82.671,3.47627137]
[1773040833611,12.08168934,82.7,82.671,3.47627137]
[1773040834211,12.09204464,82.699,82.671,3.47627137]
[1773040834411,12.09204464,82.699,82.672,12.0959938]
[1773040834610,12.08168934,82.7,82.673,3.47627137]
[1773040835023,12.08168934,82.72,82.691,3.47627137]
[1773040835219,3.2884503,82.736,82.701,3.47627137]
[1773040835220,12.08168934,82.73,82.701,3.47627137]
[1773040835917,12.08728991,82.732,82.691,3.47627137]
[1773040835918,12.08168934,82.72,82.691,3.47627137]
[1773040836425,3.2884503,82.718,82.688,12.0935879]
[1773040836608,12.089121,82.719,82.689,3.47627137]
[1773040836806,12.089121,82.719,82.69,12.08168934]
[1773040837011,12.08168934,82.72,82.691,3.47627137]
[1773040838021,24.17080777,82.72,82.691,3.47627137]
[1773040838346,12.08168934,82.72,82.691,3.47627137]
[1773040838527,12.08168934,82.72,82.69,12.08168934]
[1773040838528,12.08168934,82.73,82.693,3.47627137]
[1773040838912,12.08168934,82.74,82.701,3.47627137]
[1773040839111,12.08168934,82.72,82.692,12.09306825]
[1773040839518,12.08168934,82.72,82.691,3.47627137]
[1773040840119,15.37013964,82.72,82.691,3.47627137]
[1773040840428,15.37013964,82.72,82.692,12.09306825]
[1773040840629,15.37013964,82.72,82.658,3.69383402]
[1773040840630,12.08168934,82.7,82.671,3.47627137]
[1773040840935,15.37013964,82.7,82.671,3.47627137]
[1773040841110,15.37013964,82.7,82.671,15.57234678]
[1773040841509,15.37013964,82.7,82.671,3.47627137]
[1773040841718,15.37013964,82.7,82.672,12.0959938]
[1773040842437,3.2884503,82.689,82.652,3.47627137]
[1773040842631,3.2884503,82.687,82.654,3.47627137]
[1773040843228,12.09365325,82.688,82.654,3.47627137]
[1773040843431,12.08168934,82.7,82.661,3.47627137]
[1773040844142,12.08168934,82.71,82.671,3.47627137]
[1773040844435,12.08168934,82.71,82.67,12.08168934]
[1773040844436,12.08168934,82.69,82.661,3.47627137]
[1773040845127,12.08168934,82.69,82.662,3.47627137]
[1773040845318,3.2884503,82.709,82.671,3.47627137]
[1773040845521,12.08168934,82.71,82.671,3.47627137]
[1773040845735,12.08168934,82.72,82.681,3.47627137]
[1773040846034,3.69383402,82.742,82.681,3.47627137]
[1773040846035,12.08168934,82.71,82.681,3.47627137]
[1773040846232,3.2884503,82.717,82.681,3.47627137]
[1773040846434,12.08168934,82.7,82.671,3.47627137]
[1773040847041,15.37013964,82.7,82.671,3.47627137]
[1773040847239,12.09204464,82.699,82.671,3.47627137]
[1773040847739,12.08168934,82.69,82.671,3.47627137]
[1773040848039,12.09204464,82.699,82.671,3.47627137]
[1773040848220,12.09204464,82.699,82.666,3.47627137]
[1773040848538,12.08168934,82.69,82.666,3.47627137]
[1773040848725,12.09204464,82.699,82.666,3.47627137]
[1773040849432,12.09204464,82.699,82.668,3.47627137]
[1773040850018,12.09204464,82.699,82.671,3.47627137]
[1773040850541,30.22688421,82.708,82.671,3.47627137]
[1773040850542,12.08168934,82.71,82.671,3.47627137]
[1773040850741,12.08168934,82.7,82.671,3.47627137]
[1773040851240,15.37013964,82.71,82.671,3.47627137]
[1773040851431,3.2884503,82.708,82.673,3.47627137]
[1773040852037,12.08986857,82.714,82.681,3.47627137]
[1773040852336,12.08168934,82.72,82.691,3.47627137]
[1773040852527,12.08868351,82.722,82.691,3.47627137]
[1773040852925,12.08168934,82.73,82.691,3.47627137]
[1773040852926,12.08810293,82.726,82.691,3.47627137]
[1773040853127,12.08753437,82.73,82.691,3.47627137]
[1773040853330,24.16922371,82.73,82.691,3.47627137]
[1773040853628,12.08168934,82.72,82.693,3.47627137]
[1773040854232,12.08168934,82.71,82.681,3.47627137]
[1773040854824,3.2884503,82.719,82.681,3.47627137]
[1773040855027,3.2884503,82.709,82.671,3.47627137]
[1773040855226,12.08168934,82.7,82.671,3.47627137]
[1773040855543,12.08168934,82.7,82.67,42.33700254]
[1773040855544,12.09204464,82.699,82.673,3.47627137]
[1773040856748,3.2884503,82.698,82.673,3.47627137]
[1773040856940,12.08168934,82.69,82.664,3.47627137]
[1773040858035,24.17505766,82.69,82.665,12.09701808]
[1773040858237,24.17505766,82.69,82.666,3.47627137]
[1773040860340,12.09336832,82.69,82.668,3.47627137]
[1773040860653,12.08168934,82.68,82.651,3.47627137]
[1773040861159,3.2884503,82.679,82.651,3.47627137]
[1773040861538,12.04046266,82.7,82.661,3.47627137]
[1773040861839,3.2884503,82.699,82.661,3.47627137]
[1773040862046,12.04046266,82.69,82.661,3.47627137]
[1773040862551,12.09350699,82.689,82.661,3.47627137]
[1773040862757,12.04046266,82.68,82.661,3.47627137]
[1773040863048,3.69383402,82.712,82.663,3.63076899]
[1773040863049,12.04046266,82.69,82.663,3.63076899]
[1773040863255,12.09204464,82.699,82.663,3.63076899]
[1773040864355,12.09204464,82.699,82.665,3.63076899]
[1773040864356,3.63686721,82.698,82.665,3.63076899]
[1773040864556,12.04046266,82.69,82.665,3.63076899]
[1773040865845,12.04046266,82.69,82.667,3.63076899]
[1773040866245,3.63686721,82.698,82.667,3.63076899]
[1773040866451,12.09233708,82.697,82.667,3.63076899]
[1773040868551,12.09233708,82.697,82.651,3.63076899]
[1773040868552,15.67732987,82.68,82.651,3.63076899]
[1773040868739,3.63686721,82.689,82.651,3.63076899]
[1773040870956,3.41711787,82.679,82.652,12.09892077]
[1773040871333,3.41711787,82.679,82.651,3.63076899]
[1773040871538,3.41711787,82.679,82.636,30.25310451]
[1773040871539,3.41711787,82.669,82.643,3.35537183]
[1773040872160,3.41711787,82.669,82.632,3.35537183]
[1773040873250,12.09657908,82.668,82.634,3.35537183]
[1773040873558,12.04046266,82.66,82.634,3.35537183]
[1773040873768,15.45758053,82.66,82.634,3.35537183]
[1773040874162,3.41711787,82.659,82.634,3.35537183]
[1773040874466,60.46361853,82.695,82.599,3.69383402]
[1773040874467,3.41711787,82.73,82.628,3.35537183]
[1773040874765,102.74262368,82.731,82.661,3.35537183]
[1773040874766,3.41711787,82.699,82.661,3.35537183]
[1773040875264,12.09219086,82.698,82.663,3.35537183]
[1773040875762,12.09219086,82.698,82.63,3.69383402]
[1773040875763,3.41711787,82.679,82.653,3.35537183]
[1773040876470,12.04046266,82.68,82.653,3.35537183]
[1773040876668,3.41711787,82.688,82.653,3.35537183]
[1773040876872,12.04046266,82.68,82.653,3.35537183]
[1773040877168,12.04046266,82.69,82.661,3.35537183]
[1773040877366,15.51062486,82.689,82.661,3.35537183]
[1773040877668,3.41711787,82.688,82.661,3.35537183]
[1773040877966,12.04046266,82.67,82.647,3.35537183]
[1773040879769,24.1367501,82.67,82.647,3.35537183]
[1773040879948,3.41711787,82.671,82.648,12.09950634]
[1773040880448,12.09612157,82.672,82.649,3.35537183]
[1773040881269,12.04046266,82.67,82.649,3.35537183]
[1773040881467,12.04046266,82.66,82.637,12.10100844]
[1773040881771,12.04046266,82.66,82.634,3.35537183]
[1773040881973,12.09743773,82.663,82.634,3.35537183]
[1773040882351,12.09676585,82.667,82.634,3.35537183]
[1773040883172,12.04046266,82.67,82.64,12.04046266]
[1773040883368,12.09643276,82.669,82.641,3.35537183]
[1773040884763,12.09643276,82.669,82.643,3.35537183]
[1773040886670,3.41711787,82.668,82.643,3.35537183]
[1773040886968,12.09672541,82.667,82.643,3.35537183]
[1773040887166,3.41711787,82.666,82.634,3.35537183]
[1773040887479,4.49811771,82.66,82.634,3.35537183]
[1773040888074,3.41711787,82.666,82.634,3.35537183]
[1773040888877,3.41711787,82.659,82.621,3.35537183]
[1773040889056,3.41711787,82.659,82.624,12.102895]
[1773040889258,3.41711787,82.659,82.625,3.35537183]
[1773040889779,12.09701808,82.665,82.631,3.35537183]
[1773040890154,3.41711787,82.659,82.631,3.35537183]
[1773040890356,12.09639737,82.67,82.641,3.35537183]
[1773040890590,12.095635,82.675,82.641,3.35537183]
[1773040891411,3.41711787,82.674,82.643,3.35537183]
[1773040893491,3.69383402,82.701,82.64,4.49811771]
[1773040893492,3.60524949,82.692,82.661,3.60910663]
[1773040895166,4.49811771,82.69,82.662,12.09745711]
[1773040895372,3.60524949,82.689,82.662,12.09745711]
[1773040895765,3.60524949,82.689,82.656,3.60910663]
[1773040895964,3.60524949,82.679,82.656,3.60910663]
[1773040896793,3.60524949,82.689,82.656,3.60910663]
[1773040897686,4.49811771,82.69,82.658,3.60910663]
[1773040897687,3.60524949,82.687,82.658,3.60910663]
[1773040898485,12.09365325,82.688,82.658,3.60910663]
[1773040898794,15.69774328,82.696,82.661,3.60910663]
[1773040900089,12.04475702,82.7,82.663,3.60910663]
[1773040900392,12.04475702,82.71,82.671,3.60910663]
[1773040900579,15.65000651,82.71,82.671,3.60910663]
[1773040900779,3.60524949,82.709,82.671,3.60910663]
[1773040901684,12.04475702,82.7,82.671,3.60910663]
[1773040901890,3.60524949,82.699,82.671,3.60910663]
[1773040902092,12.04475702,82.69,82.664,3.60910663]
[1773040902308,3.60524949,82.679,82.649,12.09935994]
[1773040902487,12.04475702,82.68,82.651,3.60910663]
[1773040902986,15.65000651,82.68,82.651,3.60910663]
[1773040904195,60.44669291,82.718,82.626,60.51347333]
[1773040904196,3.60524949,82.687,82.653,3.60910663]
[1773040904600,12.04475702,82.68,82.653,3.60910663]
[1773040905792,12.0949697,82.679,82.654,12.09862801]
[1773040905998,12.0949697,82.679,82.655,3.60910663]
[1773040908494,3.69383402,82.707,82.638,30.25240863]
[1773040908495,3.60524949,82.709,82.671,3.60910663]
[1773040908700,12.04475702,82.7,82.671,3.60910663]
[1773040909892,12.09204464,82.699,82.673,3.60910663]
[1773040910094,12.04475702,82.7,82.673,3.60910663]
[1773040911216,12.09204464,82.699,82.673,3.60910663]
[1773040911420,3.60524949,82.698,82.673,3.60910663]
[1773040912709,12.04475702,82.7,82.675,3.60910663]
[1773040913016,3.60524949,82.699,82.675,3.60910663]
[1773040913218,3.60524949,82.698,82.675,3.60910663]
[1773040914397,3.60524949,82.698,82.667,3.60910663]
[1773040914814,15.69758657,82.697,82.669,3.60910663]
[1773040915014,12.04475702,82.69,82.669,3.60910663]
[1773040917420,3.60524949,82.688,82.662,3.60910663]